[Event "WYCC 2018 G16"]
[Site "Halkidiki"]
[Date "2018.10.28"]
[Round "9"]
[White "Bulatova, Kamaliya"]
[Black "Goltseva, Ekaterina"]
[Result "0-1"]
[ECO "A46"]
[WhiteElo "2108"]
[BlackElo "2169"]
[Annotator "NA"]
[PlyCount "130"]
[EventDate "2018.10.20"]
[EventType "swiss"]
[EventCountry "GRE"]
[SourceTitle "playchess.com"]
[Source "ChessBase"]
[SourceQuality "1"]
[TimeControl "40/5400+30:1800+30"]

1. d4 {[%emt 0:00:00]} Nf6 {[%emt 0:00:00]} 2. Nf3 {[%emt 0:00:00]} d5 {[%emt 0:00:00]} 3. g3 {[%emt 0:00:00]} b5 {[%emt 0:02:33]} 4. Bg2 {[%emt 0:00:00]} Bb7 {[%emt 0:00:05]} 5. O-O {[%emt 0:00:00]} e6 {[%emt 0:00:19]} 6. b3 {[%emt 0:00:55]} Nbd7 {[%emt 0:05:35]} 7. c4 {[%emt 0:03:19]} bxc4 {[%emt 0:04:54]} 8. bxc4 {[%emt 0:00:04]} dxc4 {[%emt 0:05:56]} 9. Qa4 {[%emt 0:01:47]} Bd6 {[%emt 0:13:44]} 10. Qxc4 {[%emt 0:06:05]} O-O {[%emt 0:01:43]} 11. Nc3 {[%emt 0:05:18]} c5 {[%emt 0:04:54]} 12. Rb1 {[%emt 0:12:07]} Nb6 {[%emt 0:03:35]} 13. Qd3 {[%emt 0:00:52]} cxd4 {[%emt 0:02:07]} 14. Qxd4 {[%emt 0:01:01]} Qe7 {[%emt 0:02:21]} 15. Bg5 {[%emt 0:03:20]} Rfd8 {[%emt 0:07:47]} 16. Ne4 {[%emt 0:12:12]} Bxe4 {[%emt 0:18:54]} 17. Bxf6 {[%emt 0:00:11]} Qxf6 {[%emt 0:00:29]} 18. Qxe4 {[%emt 0:00:08]} Rac8 {[%emt 0:01:03]} 19. Qb7 {[%emt 0:04:33]} Rc7 {[%emt 0:02:21]} 20. Qa6 {[%emt 0:00:16]} Bc5 {[%emt 0:07:54]} 21. a4 {[%emt 0:02:45]} h6 {[%emt 0:02:21]} 22. Ne1 {[%emt 0:07:13]} Qd4 {[%emt 0:08:01]} 23. a5 {[%emt 0:03:41]} Nc4 {[%emt 0:00:37]} 24. Nf3 {[%emt 0:02:38]} Qd6 {[%emt 0:01:01]} 25. Qxd6 {[%emt 0:02:05]} Rxd6 {[%emt 0:00:13]} 26. Rb8+ {[%emt 0:03:03]} Kh7 {[%emt 0:00:08]} 27. Ra1 {[%emt 0:01:12]} Ra6 {[%emt 0:00:51]} 28. Rb5 {[%emt 0:08:08]} Bb6 {[%emt 0:01:02]} 29. Ne5 {[%emt 0:00:21]} Rxa5 {[%emt 0:00:40]} 30. Rbxa5 {[%emt 0:00:34]} Nxa5 {[%emt 0:00:06]} 31. Be4+ {[%emt 0:00:05]} g6 {[%emt 0:00:17]} 32. Rd1 {[%emt 0:00:41]} Nb3 {[%emt 0:01:16]} 33. h4 {[%emt 0:01:27]} Kg7 {[%emt 0:00:24]} 34. Kg2 {[%emt 0:00:54]} Nc5 {[%emt 0:00:36]} 35. Bf3 {[%emt 0:00:36]} Kf6 {[%emt 0:01:01]} 36. Nc4 {[%emt 0:00:09]} Ke7 {[%emt 0:01:09]} 37. Nxb6 {[%emt 0:04:41]} axb6 {[%emt 0:00:04]} 38. Rb1 {[%emt 0:00:03]} Nd7 {[%emt 0:00:14]} 39. e3 {[%emt 0:00:03]} Rc5 {[%emt 0:00:30]} 40. Be2 {[%emt 0:00:00]} Kd6 {[%emt 0:00:00]} 41. Bb5 {[%emt 0:00:38]} Nf6 {[%emt 0:02:00]} 42. Rb2 {[%emt 0:01:44]} Nd5 {[%emt 0:03:44]} 43. e4 {[%emt 0:01:34]} Nc3 {[%emt 0:01:52]} 44. Rd2+ {[%emt 0:00:17]} Ke7 {[%emt 0:01:54]} 45. Bd3 {[%emt 0:01:43]} e5 {[%emt 0:05:32]} 46. Rb2 {[%emt 0:01:02]} b5 {[%emt 0:00:31]} 47. Rb3 {[%emt 0:00:34]} Kd6 {[%emt 0:00:27]} 48. Kf1 {[%emt 0:01:06]} Kc6 {[%emt 0:00:57]} 49. Ke1 {[%emt 0:00:07]} Kb6 {[%emt 0:00:24]} 50. Kd2 {[%emt 0:00:57]} Na4 {[%emt 0:00:23]} 51. Bc2 {[%emt 0:01:07]} Rc7 {[%emt 0:09:37]} 52. Bd3 {[%emt 0:00:34]} Rc5 {[%emt 0:00:19]} 53. Bc2 {[%emt 0:00:05]} Ka5 {[%emt 0:00:45]} 54. Ra3 {[%emt 0:05:02]} f6 {[%emt 0:02:23]} 55. Rd3 {[%emt 0:02:56]} Nb2 {[%emt 0:02:38]} 56. Rd8 {[%emt 0:02:47]} Nc4+ {[%emt 0:00:19]} 57. Ke2 {[%emt 0:01:11]} Kb4 {[%emt 0:01:18]} 58. Bd3 {[%emt 0:01:32]} Kc3 {[%emt 0:01:06]} 59. Rh8 {[%emt 0:02:05]} b4 {[%emt 0:02:07]} 60. Rxh6 {[%emt 0:00:43]} b3 {[%emt 0:01:12]} 61. Rxg6 {[%emt 0:00:14]} Ra5 {[%emt 0:00:58]} 62. Bxc4 {[%emt 0:01:02]} Kxc4 {[%emt 0:00:25]} 63. Rxf6 {[%emt 0:00:15]} b2 {[%emt 0:00:18]} 64. Rc6+ {[%emt 0:02:26]} Rc5 {[%emt 0:00:21]} 65. Rb6 {[%emt 0:00:21]} Rb5 {[%emt 0:00:08]} 0-1

[Event "WYCC 2018 G16"]
[Site "Halkidiki"]
[Date "2018.10.28"]
[Round "9"]
[White "Salonika, Saina"]
[Black "De Silva, Tenara"]
[Result "1-0"]
[ECO "B09"]
[WhiteElo "2093"]
[BlackElo "1927"]
[Annotator "NA"]
[PlyCount "59"]
[EventDate "2018.10.20"]
[EventType "swiss"]
[EventCountry "GRE"]
[SourceTitle "playchess.com"]
[Source "ChessBase"]
[SourceQuality "1"]
[TimeControl "40/5400+30:1800+30"]

1. e4 {[%emt 0:00:00]} d6 {[%emt 0:00:00]} 2. d4 {[%emt 0:00:00]} g6 {[%emt 0:00:00]} 3. Nc3 {[%emt 0:00:00]} Bg7 {[%emt 0:00:00]} 4. f4 {[%emt 0:00:00]} Nf6 {[%emt 0:00:00]} 5. Bd3 {[%emt 0:00:00]} O-O {[%emt 0:00:28]} 6. Nf3 {[%emt 0:00:04]} Nc6 {[%emt 0:00:09]} 7. e5 {[%emt 0:03:32]} dxe5 {[%emt 0:00:23]} 8. fxe5 {[%emt 0:00:31]} Nh5 {[%emt 0:00:59]} 9. Be3 {[%emt 0:01:03]} Bg4 {[%emt 0:01:42]} 10. Be4 {[%emt 0:05:10]} f6 {[%emt 0:04:20]} 11. Qe2 {[%emt 0:28:30]} Kh8 {[%emt 0:10:59]} 12. O-O-O {[%emt 0:05:02]} Qc8 {[%emt 0:02:46]} 13. Qb5 {[%emt 0:05:58]} fxe5 {[%emt 0:12:58]} 14. dxe5 {[%emt 0:01:59]} a6 {[%emt 0:01:23]} 15. Qc5 {[%emt 0:02:02]} e6 {[%emt 0:01:43]} 16. Rhf1 {[%emt 0:06:55]} Bxf3 {[%emt 0:10:31]} 17. Bxf3 {[%emt 0:04:10]} Nxe5 {[%emt 0:02:57]} 18. Bxh5 {[%emt 0:12:02]} Rxf1 {[%emt 0:06:06]} 19. Rxf1 {[%emt 0:00:03]} gxh5 {[%emt 0:00:20]} 20. Ne4 {[%emt 0:04:39]} b6 {[%emt 0:08:18]} 21. Qe7 {[%emt 0:01:49]} Qb7 {[%emt 0:00:48]} 22. Ng5 {[%emt 0:00:57]} Qxg2 {[%emt 0:02:22]} 23. Rd1 {[%emt 0:00:10]} Rf8 {[%emt 0:13:08]} 24. Bd4 {[%emt 0:07:51]} Rf1 {[%emt 0:07:38]} 25. Qd8+ {[%emt 0:00:15]} Rf8 {[%emt 0:00:20]} 26. Bxe5 {[%emt 0:00:09]} Qa8 {[%emt 0:05:13]} 27. Bxg7+ {[%emt 0:00:09]} Kxg7 {[%emt 0:00:04]} 28. Nxe6+ {[%emt 0:00:15]} Kh8 {[%emt 0:00:11]} 29. Qd4+ {[%emt 0:00:10]} Kg8 {[%emt 0:00:15]} 30. Qg7# {[%emt 0:00:04]} 1-0

[Event "WYCC 2018 G16"]
[Site "Halkidiki"]
[Date "2018.10.28"]
[Round "9"]
[White "Kucharska, Honorata"]
[Black "Srdanovic, Jovana"]
[Result "1/2-1/2"]
[ECO "B22"]
[WhiteElo "2073"]
[BlackElo "2072"]
[Annotator "NA"]
[PlyCount "108"]
[EventDate "2018.10.20"]
[EventType "swiss"]
[EventCountry "GRE"]
[SourceTitle "playchess.com"]
[Source "ChessBase"]
[SourceQuality "1"]
[TimeControl "40/5400+30:1800+30"]

1. e4 {[%emt 0:00:00]} c5 {[%emt 0:00:00]} 2. c3 {[%emt 0:00:00]} d5 {[%emt 0:00:00]} 3. exd5 {[%emt 0:00:00]} Qxd5 {[%emt 0:00:00]} 4. d4 {[%emt 0:00:00]} Nf6 {[%emt 0:00:25]} 5. Nf3 {[%emt 0:00:17]} Bg4 {[%emt 0:02:31]} 6. Be2 {[%emt 0:01:06]} e6 {[%emt 0:00:23]} 7. O-O {[%emt 0:01:08]} Be7 {[%emt 0:02:05]} 8. Be3 {[%emt 0:03:39]} cxd4 {[%emt 0:01:55]} 9. Nxd4 {[%emt 0:01:13]} Bxe2 {[%emt 0:15:08]} 10. Qxe2 {[%emt 0:00:39]} a6 {[%emt 0:01:33]} 11. c4 {[%emt 0:04:21]} Qh5 {[%emt 0:01:09]} 12. Qxh5 {[%emt 0:03:13]} Nxh5 {[%emt 0:00:07]} 13. Nc3 {[%emt 0:00:20]} Nd7 {[%emt 0:01:43]} 14. f4 {[%emt 0:05:10]} Nhf6 {[%emt 0:04:01]} 15. Rac1 {[%emt 0:06:00]} Ng4 {[%emt 0:12:29]} 16. Bf2 {[%emt 0:02:21]} Nxf2 {[%emt 0:02:07]} 17. Kxf2 {[%emt 0:00:12]} Bc5 {[%emt 0:05:28]} 18. Rfd1 {[%emt 0:02:31]} g5 {[%emt 0:14:46]} 19. Ne4 {[%emt 0:13:56]} gxf4 {[%emt 0:00:20]} 20. Kf3 {[%emt 0:05:15]} Rg8 {[%emt 0:07:58]} 21. a3 {[%emt 0:04:01]} Ke7 {[%emt 0:01:18]} 22. b4 {[%emt 0:05:57]} Bxd4 {[%emt 0:01:17]} 23. Rxd4 {[%emt 0:00:07]} Rad8 {[%emt 0:02:55]} 24. Rcd1 {[%emt 0:02:39]} Ne5+ {[%emt 0:08:36]} 25. Kxf4 {[%emt 0:02:44]} Nxc4 {[%emt 0:02:46]} 26. Rxd8 {[%emt 0:09:33]} Rxd8 {[%emt 0:00:07]} 27. Rc1 {[%emt 0:00:20]} Rd4 {[%emt 0:00:55]} 28. Kf3 {[%emt 0:00:25]} b6 {[%emt 0:00:37]} 29. a4 {[%emt 0:00:50]} Ne5+ {[%emt 0:00:31]} 30. Ke3 {[%emt 0:00:21]} Rxb4 {[%emt 0:00:20]} 31. Rc7+ {[%emt 0:02:32]} Nd7 {[%emt 0:00:06]} 32. a5 {[%emt 0:02:29]} Kd8 {[%emt 0:02:20]} 33. Ra7 {[%emt 0:01:09]} f6 {[%emt 0:02:16]} 34. axb6 {[%emt 0:01:54]} Rxb6 {[%emt 0:00:11]} 35. g4 {[%emt 0:00:20]} e5 {[%emt 0:02:19]} 36. h4 {[%emt 0:01:06]} Rb4 {[%emt 0:03:04]} 37. h5 {[%emt 0:01:29]} Rb3+ {[%emt 0:01:08]} 38. Ke2 {[%emt 0:00:16]} Rb6 {[%emt 0:00:59]} 39. Ke3 {[%emt 0:00:24]} Rc6 {[%emt 0:00:16]} 40. Ke2 {[%emt 0:00:00]} Ke7 {[%emt 0:00:00]} 41. Ng3 {[%emt 0:04:11]} Rc2+ {[%emt 0:07:23]} 42. Kd3 {[%emt 0:00:29]} Rb2 {[%emt 0:03:34]} 43. Kc4 {[%emt 0:02:13]} Rc2+ {[%emt 0:01:47]} 44. Kd3 {[%emt 0:00:12]} Rc6 {[%emt 0:05:36]} 45. Nf5+ {[%emt 0:02:35]} Kd8 {[%emt 0:05:25]} 46. Ke3 {[%emt 0:02:28]} Rb6 {[%emt 0:11:15]} 47. Ke2 {[%emt 0:02:38]} Rb2+ {[%emt 0:01:13]} 48. Ke3 {[%emt 0:00:06]} Rb6 {[%emt 0:00:06]} 49. Ke2 {[%emt 0:00:10]} Rc6 {[%emt 0:01:16]} 50. Ke3 {[%emt 0:00:14]} Rb6 {[%emt 0:00:07]} 51. Ke2 {[%emt 0:00:04]} Rb4 {[%emt 0:00:39]} 52. Kf3 {[%emt 0:01:49]} Rb6 {[%emt 0:00:47]} 53. Ke3 {[%emt 0:00:24]} Rb4 {[%emt 0:00:07]} 54. Kf3 {[%emt 0:00:08]} Rb6 {[%emt 0:00:57]} 1/2-1/2

[Event "WYCC 2018 G16"]
[Site "Halkidiki"]
[Date "2018.10.28"]
[Round "9"]
[White "Rudzinska, Michalina"]
[Black "Gomez Barrera, Javiera Belen"]
[Result "1-0"]
[ECO "C49"]
[WhiteElo "2073"]
[BlackElo "2136"]
[Annotator "NA"]
[PlyCount "83"]
[EventDate "2018.10.20"]
[EventType "swiss"]
[EventCountry "GRE"]
[SourceTitle "playchess.com"]
[Source "ChessBase"]
[SourceQuality "1"]
[TimeControl "40/5400+30:1800+30"]

1. e4 {[%emt 0:00:00]} e5 {[%emt 0:00:00]} 2. Nf3 {[%emt 0:00:00]} Nc6 {[%emt 0:00:00]} 3. Nc3 {[%emt 0:00:00]} Nf6 {[%emt 0:00:00]} 4. Bb5 {[%emt 0:00:00]} Bb4 {[%emt 0:04:53]} 5. O-O {[%emt 0:00:04]} O-O {[%emt 0:06:42]} 6. d3 {[%emt 0:00:10]} Re8 {[%emt 0:21:28]} 7. Bg5 {[%emt 0:09:31]} Be7 {[%emt 0:12:12]} 8. Bxc6 {[%emt 0:09:03]} dxc6 {[%emt 0:10:04]} 9. Nxe5 {[%emt 0:01:20]} Nxe4 {[%emt 0:02:58]} 10. Nxe4 {[%emt 0:01:30]} f6 {[%emt 0:07:08]} 11. Nxc6 {[%emt 0:06:20]} bxc6 {[%emt 0:00:40]} 12. Bd2 {[%emt 0:00:23]} Rb8 {[%emt 0:01:34]} 13. Bc3 {[%emt 0:01:03]} Qd5 {[%emt 0:00:27]} 14. Qf3 {[%emt 0:01:02]} Be6 {[%emt 0:02:15]} 15. Qg3 {[%emt 0:02:42]} Qd8 {[%emt 0:05:18]} 16. Rfe1 {[%emt 0:02:30]} Bf7 {[%emt 0:01:34]} 17. Re3 {[%emt 0:02:37]} Bg6 {[%emt 0:00:59]} 18. Rae1 {[%emt 0:03:05]} Qd7 {[%emt 0:02:37]} 19. h4 {[%emt 0:06:07]} Bd6 {[%emt 0:05:35]} 20. Qf3 {[%emt 0:01:21]} Be5 {[%emt 0:04:33]} 21. h5 {[%emt 0:14:38]} Bxe4 {[%emt 0:02:27]} 22. Rxe4 {[%emt 0:00:46]} Bxc3 {[%emt 0:00:29]} 23. bxc3 {[%emt 0:00:07]} Rxe4 {[%emt 0:00:58]} 24. Qxe4 {[%emt 0:00:10]} Qd5 {[%emt 0:02:46]} 25. Qg4 {[%emt 0:01:37]} Kf7 {[%emt 0:01:17]} 26. c4 {[%emt 0:01:38]} Qd6 {[%emt 0:00:14]} 27. h6 {[%emt 0:02:25]} g6 {[%emt 0:02:15]} 28. c5 {[%emt 0:05:36]} Qd5 {[%emt 0:00:04]} 29. c4 {[%emt 0:02:33]} Qf5 {[%emt 0:00:05]} 30. Qe2 {[%emt 0:00:32]} Qd7 {[%emt 0:00:08]} 31. d4 {[%emt 0:00:51]} Re8 {[%emt 0:00:10]} 32. Qxe8+ {[%emt 0:00:46]} Qxe8 {[%emt 0:00:01]} 33. Rxe8 {[%emt 0:00:07]} Kxe8 {[%emt 0:00:05]} 34. f4 {[%emt 0:05:43]} Kd7 {[%emt 0:01:21]} 35. Kf2 {[%emt 0:00:16]} Ke6 {[%emt 0:01:44]} 36. Ke3 {[%emt 0:00:23]} Ke7 {[%emt 0:00:24]} 37. Ke4 {[%emt 0:00:28]} Kd7 {[%emt 0:00:07]} 38. g4 {[%emt 0:00:27]} Ke7 {[%emt 0:00:13]} 39. g5 {[%emt 0:01:27]} fxg5 {[%emt 0:01:09]} 40. fxg5 {[%emt 0:00:00]} Ke6 {[%emt 0:00:00]} 41. d5+ {[%emt 0:00:26] Kxd5+} Ke7 {[%emt 0:00:50]} 42. Ke5 {[%emt 0:00:09]} 1-0

[Event "WYCC 2018 G16"]
[Site "Halkidiki"]
[Date "2018.10.28"]
[Round "9"]
[White "Urh, Zala"]
[Black "Ouellet, Maili-Jade"]
[Result "0-1"]
[ECO "E32"]
[WhiteElo "2066"]
[BlackElo "2122"]
[Annotator "NA"]
[PlyCount "158"]
[EventDate "2018.10.20"]
[EventType "swiss"]
[EventCountry "GRE"]
[SourceTitle "playchess.com"]
[Source "ChessBase"]
[SourceQuality "1"]
[TimeControl "40/5400+30:1800+30"]

1. d4 {[%emt 0:00:00]} Nf6 {[%emt 0:00:00]} 2. c4 {[%emt 0:00:00]} e6 {[%emt 0:00:00]} 3. Nc3 {[%emt 0:00:00]} Bb4 {[%emt 0:00:00]} 4. Qc2 {[%emt 0:00:00]} O-O {[%emt 0:00:00]} 5. a3 {[%emt 0:00:39]} Bxc3+ {[%emt 0:00:00]} 6. Qxc3 {[%emt 0:00:07]} d5 {[%emt 0:00:00]} 7. Bg5 {[%emt 0:01:28]} dxc4 {[%emt 0:00:06]} 8. Qxc4 {[%emt 0:00:46]} b6 {[%emt 0:00:06]} 9. Rd1 {[%emt 0:06:48]} Ba6 {[%emt 0:00:10]} 10. Qa4 {[%emt 0:00:05]} Qe7 {[%emt 0:01:14]} 11. Nf3 {[%emt 0:06:09]} Rd8 {[%emt 0:00:57]} 12. e3 {[%emt 0:10:07]} Bxf1 {[%emt 0:00:13]} 13. Rxf1 {[%emt 0:00:58]} c5 {[%emt 0:04:20]} 14. dxc5 {[%emt 0:01:38]} Rxd1+ {[%emt 0:04:08]} 15. Qxd1 {[%emt 0:00:10]} bxc5 {[%emt 0:02:17]} 16. Ne5 {[%emt 0:08:04]} Nbd7 {[%emt 0:33:13]} 17. Nxd7 {[%emt 0:10:33]} Qxd7 {[%emt 0:00:13]} 18. Qxd7 {[%emt 0:00:04]} Nxd7 {[%emt 0:00:05]} 19. Kd2 {[%emt 0:00:41]} f6 {[%emt 0:08:58]} 20. Bf4 {[%emt 0:02:15]} e5 {[%emt 0:00:05]} 21. Bg3 {[%emt 0:00:06]} Rb8 {[%emt 0:04:11]} 22. Kc2 {[%emt 0:02:26]} Kf7 {[%emt 0:00:35]} 23. Rd1 {[%emt 0:02:47]} Ke6 {[%emt 0:00:34]} 24. f4 {[%emt 0:01:58]} Rb7 {[%emt 0:06:16]} 25. e4 {[%emt 0:06:16]} exf4 {[%emt 0:11:51]} 26. Bxf4 {[%emt 0:00:06]} Ne5 {[%emt 0:00:44]} 27. Rd5 {[%emt 0:08:41]} Nc4 {[%emt 0:02:18]} 28. Rxc5 {[%emt 0:04:33]} Nxb2 {[%emt 0:01:18]} 29. Rc6+ {[%emt 0:01:47]} Ke7 {[%emt 0:01:08]} 30. e5 {[%emt 0:02:48]} Na4 {[%emt 0:01:49]} 31. exf6+ {[%emt 0:10:37]} gxf6 {[%emt 0:00:06]} 32. Bd2 {[%emt 0:00:27]} Nb6 {[%emt 0:03:32]} 33. Bb4+ {[%emt 0:00:20]} Kf7 {[%emt 0:00:12]} 34. Bc3 {[%emt 0:01:04]} Nd7 {[%emt 0:01:05]} 35. Bd4 {[%emt 0:01:28]} Ne5 {[%emt 0:02:45]} 36. Ra6 {[%emt 0:01:22]} Rc7+ {[%emt 0:00:18]} 37. Kd2 {[%emt 0:05:53]} Nc6 {[%emt 0:00:34]} 38. Bc3 {[%emt 0:00:43]} Ke6 {[%emt 0:00:57]} 39. Kd3 {[%emt 0:01:08]} Kf5 {[%emt 0:02:48]} 40. Bd2 {[%emt 0:00:00]} Ne5+ {[%emt 0:00:00]} 41. Ke2 {[%emt 0:06:06]} h5 {[%emt 0:08:18]} 42. Be3 {[%emt 0:06:11]} Rc2+ {[%emt 0:05:17]} 43. Kf1 {[%emt 0:00:22]} Ng4 {[%emt 0:00:37]} 44. Bxa7 {[%emt 0:00:14]} Nxh2+ {[%emt 0:00:23]} 45. Kg1 {[%emt 0:00:16]} Ng4 {[%emt 0:00:08]} 46. Kf1 {[%emt 0:00:48]} Ne5 {[%emt 0:03:36]} 47. Ra4 {[%emt 0:03:28]} Nc4 {[%emt 0:02:06]} 48. Bd4 {[%emt 0:04:19]} h4 {[%emt 0:11:24]} 49. Bf2 {[%emt 0:07:47]} Ke5 {[%emt 0:05:44]} 50. Bxh4 {[%emt 0:02:57]} Ne3+ {[%emt 0:00:06]} 51. Ke1 {[%emt 0:00:10]} Nxg2+ {[%emt 0:00:09]} 52. Kd1 {[%emt 0:00:05]} Ne3+ {[%emt 0:00:33]} 53. Ke1 {[%emt 0:00:03]} f5 {[%emt 0:01:26]} 54. Bg3+ {[%emt 0:00:37]} Kd5 {[%emt 0:00:22]} 55. Bf2 {[%emt 0:02:29]} Nc4 {[%emt 0:01:02]} 56. Ra8 {[%emt 0:01:06]} Ke4 {[%emt 0:03:22]} 57. Rd8 {[%emt 0:00:43]} f4 {[%emt 0:01:20]} 58. a4 {[%emt 0:03:06]} Ne5 {[%emt 0:02:02]} 59. Re8 {[%emt 0:01:21]} Ra2 {[%emt 0:00:46]} 60. Bb6 {[%emt 0:00:47]} Kf5 {[%emt 0:01:05]} 61. a5 {[%emt 0:01:01]} f3 {[%emt 0:00:07]} 62. Rf8+ {[%emt 0:00:11]} Ke4 {[%emt 0:00:37]} 63. Re8 {[%emt 0:00:14]} Kd5 {[%emt 0:00:57]} 64. Rd8+ {[%emt 0:00:20]} Ke4 {[%emt 0:00:20]} 65. Re8 {[%emt 0:00:04]} Kf5 {[%emt 0:00:12]} 66. Rf8+ {[%emt 0:00:04]} Kg6 {[%emt 0:01:03]} 67. Bd4 {[%emt 0:02:27]} Nf7 {[%emt 0:00:42]} 68. Rg8+ {[%emt 0:00:49]} Kf5 {[%emt 0:00:01]} 69. Rf8 {[%emt 0:00:07]} Ke6 {[%emt 0:00:13]} 70. Re8+ {[%emt 0:00:27]} Kd5 {[%emt 0:00:08]} 71. Rf8 {[%emt 0:00:23]} Nd6 {[%emt 0:01:37]} 72. Bc3 {[%emt 0:00:57]} Ke4 {[%emt 0:00:32]} 73. Kf1 {[%emt 0:00:52]} Nf5 {[%emt 0:00:28]} 74. Bb4 {[%emt 0:00:29]} Ne3+ {[%emt 0:00:39]} 75. Kg1 {[%emt 0:00:02]} Rg2+ {[%emt 0:00:12]} 76. Kh1 {[%emt 0:00:00]} f2 {[%emt 0:00:32]} 77. Re8+ {[%emt 0:01:07]} Kf3 {[%emt 0:00:36]} 78. Rxe3+ {[%emt 0:00:57]} Kxe3 {[%emt 0:00:06]} 79. Kxg2 {[%emt 0:00:14]} Ke2 {[%emt 0:00:05]} 0-1

[Event "WYCC 2018 G16"]
[Site "Halkidiki"]
[Date "2018.10.28"]
[Round "9"]
[White "Meenal Gupta"]
[Black "Bach, Ngoc Thuy Duong"]
[Result "0-1"]
[ECO "B90"]
[WhiteElo "2065"]
[BlackElo "2161"]
[Annotator "NA"]
[PlyCount "112"]
[EventDate "2018.10.20"]
[EventType "swiss"]
[EventCountry "GRE"]
[SourceTitle "playchess.com"]
[Source "ChessBase"]
[SourceQuality "1"]
[TimeControl "40/5400+30:1800+30"]

1. e4 {[%emt 0:00:00]} c5 {[%emt 0:00:00]} 2. Nf3 {[%emt 0:00:00]} d6 {[%emt 0:00:00]} 3. d4 {[%emt 0:00:00]} cxd4 {[%emt 0:00:00]} 4. Nxd4 {[%emt 0:00:00]} Nf6 {[%emt 0:00:00]} 5. Nc3 {[%emt 0:00:00]} a6 {[%emt 0:00:05]} 6. Be3 {[%emt 0:00:00]} e5 {[%emt 0:00:05]} 7. Nb3 {[%emt 0:00:04]} Be6 {[%emt 0:00:07]} 8. f3 {[%emt 0:00:09]} Be7 {[%emt 0:00:26]} 9. Qd2 {[%emt 0:00:06]} O-O {[%emt 0:00:40]} 10. O-O-O {[%emt 0:00:07]} Nbd7 {[%emt 0:00:11]} 11. g4 {[%emt 0:00:06]} b5 {[%emt 0:00:09]} 12. g5 {[%emt 0:00:05]} b4 {[%emt 0:10:54]} 13. Ne2 {[%emt 0:01:54]} Ne8 {[%emt 0:00:08]} 14. f4 {[%emt 0:06:24]} a5 {[%emt 0:02:54]} 15. Kb1 {[%emt 0:00:45]} a4 {[%emt 0:40:31]} 16. Nbc1 {[%emt 0:00:40]} Qa5 {[%emt 0:07:21]} 17. f5 {[%emt 0:32:44]} Bc4 {[%emt 0:00:20]} 18. Ng3 {[%emt 0:02:12]} Bxf1 {[%emt 0:02:00]} 19. Rhxf1 {[%emt 0:02:56]} Bd8 {[%emt 0:01:40]} 20. f6 {[%emt 0:09:53]} g6 {[%emt 0:00:17]} 21. h4 {[%emt 0:00:24]} Bb6 {[%emt 0:05:34]} 22. Bxb6 {[%emt 0:18:33]} Nxb6 {[%emt 0:04:10]} 23. h5 {[%emt 0:00:26]} Nc4 {[%emt 0:02:25]} 24. Qd3 {[%emt 0:00:14]} Qc5 {[%emt 0:00:58]} 25. Rf3 {[%emt 0:03:28]} Nc7 {[%emt 0:02:28]} 26. hxg6 {[%emt 0:04:07]} fxg6 {[%emt 0:00:31]} 27. Rh1 {[%emt 0:00:45]} Qd4 {[%emt 0:07:54]} 28. Qxd4 {[%emt 0:01:47]} exd4 {[%emt 0:00:07]} 29. Rd3 {[%emt 0:01:02]} Ne6 {[%emt 0:00:29]} 30. Nce2 {[%emt 0:00:11]} Ne5 {[%emt 0:01:08]} 31. Rdd1 {[%emt 0:00:16]} Nf3 {[%emt 0:00:29]} 32. Rhf1 {[%emt 0:00:31]} Nexg5 {[%emt 0:00:24]} 33. Nxd4 {[%emt 0:00:09]} Rxf6 {[%emt 0:00:14]} 34. Nxf3 {[%emt 0:00:29]} Nxf3 {[%emt 0:00:06]} 35. Nf5 {[%emt 0:00:43]} gxf5 {[%emt 0:00:35]} 36. Rxf3 {[%emt 0:00:05]} Raf8 {[%emt 0:00:50]} 37. Rdf1 {[%emt 0:00:44]} f4 {[%emt 0:00:28]} 38. Kc1 {[%emt 0:00:19]} h5 {[%emt 0:02:46]} 39. Kd2 {[%emt 0:00:09]} Kg7 {[%emt 0:01:29]} 40. Kd3 {[%emt 0:00:00]} Kg6 {[%emt 0:00:00]} 41. Rg1+ {[%emt 0:00:42]} Kh6 {[%emt 0:01:04]} 42. Kc4 {[%emt 0:01:21]} Rc8+ {[%emt 0:00:47]} 43. Kxb4 {[%emt 0:00:14]} Rxc2 {[%emt 0:00:09]} 44. b3 {[%emt 0:02:25]} axb3 {[%emt 0:00:36]} 45. axb3 {[%emt 0:00:07]} Re2 {[%emt 0:00:06]} 46. Ka5 {[%emt 0:00:22]} Rxe4 {[%emt 0:00:52]} 47. b4 {[%emt 0:00:09]} Rf5+ {[%emt 0:02:18]} 48. b5 {[%emt 0:00:09]} Ree5 {[%emt 0:00:09]} 49. Rb1 {[%emt 0:00:25]} Kg5 {[%emt 0:03:43]} 50. Rg1+ {[%emt 0:01:13]} Kf6 {[%emt 0:00:50]} 51. Rb1 {[%emt 0:00:07]} Re3 {[%emt 0:03:15]} 52. Rxe3 {[%emt 0:00:08]} fxe3 {[%emt 0:00:04]} 53. Re1 {[%emt 0:00:29]} Re5 {[%emt 0:00:41]} 54. Kb4 {[%emt 0:00:15]} Kf5 {[%emt 0:00:14]} 55. b6 {[%emt 0:00:18]} Ke4 {[%emt 0:00:14]} 56. b7 {[%emt 0:00:14]} Re8 {[%emt 0:00:05]} 0-1

[Event "WYCC 2018 G16"]
[Site "Halkidiki"]
[Date "2018.10.28"]
[Round "9"]
[White "Aubert, Estee"]
[Black "Booysen, Tineke"]
[Result "1-0"]
[ECO "C00"]
[WhiteElo "2064"]
[BlackElo "1173"]
[Annotator "NA"]
[PlyCount "71"]
[EventDate "2018.10.20"]
[EventType "swiss"]
[EventCountry "GRE"]
[SourceTitle "playchess.com"]
[Source "ChessBase"]
[SourceQuality "1"]
[TimeControl "40/5400+30:1800+30"]

1. e4 {[%emt 0:00:00]} e6 {[%emt 0:00:00]} 2. d3 {[%emt 0:00:00]} d5 {[%emt 0:01:00]} 3. Nd2 {[%emt 0:00:00]} Nf6 {[%emt 0:04:57]} 4. Ngf3 {[%emt 0:00:00]} c5 {[%emt 0:05:11]} 5. g3 {[%emt 0:00:00]} Nc6 {[%emt 0:00:45]} 6. Bg2 {[%emt 0:00:06]} Be7 {[%emt 0:03:07]} 7. O-O {[%emt 0:00:09]} O-O {[%emt 0:02:34]} 8. e5 {[%emt 0:00:38]} Nd7 {[%emt 0:02:04]} 9. Re1 {[%emt 0:00:06]} Qc7 {[%emt 0:03:00]} 10. Qe2 {[%emt 0:00:10]} b6 {[%emt 0:01:18]} 11. Nf1 {[%emt 0:00:47]} Bb7 {[%emt 0:05:57]} 12. h4 {[%emt 0:00:38]} h6 {[%emt 0:03:53]} 13. Bf4 {[%emt 0:03:50]} Rac8 {[%emt 0:03:27]} 14. N1h2 {[%emt 0:01:10]} Nd4 {[%emt 0:18:49]} 15. Qd1 {[%emt 0:07:36]} Nf5 {[%emt 0:05:28]} 16. Bh3 {[%emt 0:01:21]} Qc6 {[%emt 0:02:30]} 17. Nd2 {[%emt 0:10:21]} Rfe8 {[%emt 0:04:46]} 18. Qh5 {[%emt 0:05:50]} g6 {[%emt 0:07:04]} 19. Qd1 {[%emt 0:01:28]} Bf8 {[%emt 0:02:14]} 20. Ng4 {[%emt 0:07:30]} Kg7 {[%emt 0:03:58]} 21. Bg2 {[%emt 0:01:59]} Be7 {[%emt 0:01:46]} 22. Nf3 {[%emt 0:02:28]} d4 {[%emt 0:03:14]} 23. Qd2 {[%emt 0:05:42]} Rh8 {[%emt 0:02:53]} 24. Ngh2 {[%emt 0:06:01]} Nf8 {[%emt 0:02:51]} 25. g4 {[%emt 0:03:16]} Nh7 {[%emt 0:06:20]} 26. gxf5 {[%emt 0:00:26]} exf5 27. Bxh6+ {[%emt 0:01:03]} Kg8 {[%emt 0:00:27]} 28. Re2 {[%emt 0:10:08]} Qd7 {[%emt 0:01:43]} 29. e6 {[%emt 0:08:17]} fxe6 {[%emt 0:01:09]} 30. Ne5 {[%emt 0:00:03]} Qc7 {[%emt 0:00:29]} 31. Nxg6 {[%emt 0:00:05]} Bxg2 {[%emt 0:00:14]} 32. Rxe6 {[%emt 0:03:10]} Bd6 {[%emt 0:00:38]} 33. Kxg2 {[%emt 0:07:43]} Bxh2 {[%emt 0:00:16]} 34. Qe2 {[%emt 0:03:05]} Bd6 {[%emt 0:01:52]} 35. Re8+ {[%emt 0:00:54]} Kf7 {[%emt 0:00:17]} 36. Qe6# {[%emt 0:00:12]} 1-0